bitfinex-derivatives/quotes_ETHF0:USTF0_20241024
["timestamp","ask_amount","ask_price","bid_price","bid_amount"]
[1729781122627,0.39586,2528.3,2528.2,0.39587]
[1729781122828,3.60365,2528.4,2528.2,0.39587]
[1729781123021,0.39585,2528.3,2527.9,1.4383]
[1729781123220,3.60365,2528.4,2528.2,0.39586]
[1729781123726,3.2078,2528.4,2528.2,0.39586]
[1729781123920,0.39587,2528.3,2528.1,0.39588]
[1729781124127,3.60364,2528.4,2528.2,0.39586]
[1729781124726,0.39588,2528.2,2528.0,0.3959]
[1729781124923,3.2078,2528.4,2527.9,0.7247]
[1729781125221,3.2078,2528.4,2527.8,3.2078]
[1729781125222,0.39592,2527.9,2527.8,3.2078]
[1729781125531,4.18343733,2528.0,2527.4,0.39598]
[1729781125720,4.18343733,2528.0,2527.6,0.39595]
[1729781125721,0.39593,2527.8,2527.6,0.39595]
[1729781125918,0.39595,2527.7,2527.5,0.39597]
[1729781126131,0.39595,2527.7,2527.3,3.2078]
[1729781126132,4.18343733,2528.0,2527.2,1.69905]
[1729781126323,0.39594,2527.8,2527.6,0.39595]
[1729781126528,0.39593,2527.9,2527.7,0.39594]
[1729781126720,0.39591,2528.0,2527.4,4.19779]
[1729781127025,46.40423733,2528.3,2528.2,0.39587]
[1729781127026,1.4208,2528.3,2528.2,0.39587]
[1729781127231,1.81666,2528.3,2528.1,0.39587]
[1729781127532,0.39587,2528.2,2527.8,0.7073]
[1729781127918,1.4208,2528.3,2527.8,0.7073]
[1729781128126,1.81666,2528.3,2528.1,0.39588]
[1729781128323,1.81667,2528.3,2528.1,0.39588]
[1729781128524,1.81667,2528.3,2527.9,0.39592]
[1729781128728,1.4208,2528.3,2528.0,0.3959]
[1729781129030,1.4208,2528.3,2527.8,0.7073]
[1729781129031,5.60423733,2528.3,2527.8,0.7073]
[1729781129237,0.39593,2527.9,2527.7,0.39594]
[1729781129430,0.39593,2527.9,2527.5,1.4067]
[1729781129431,0.39596,2527.6,2527.5,0.39597]
[1729781129731,0.39596,2527.6,2527.4,0.7319]
[1729781129732,0.39598,2527.6,2527.4,1.12789]
[1729781129925,0.39598,2527.6,2527.4,0.7319]
[1729781130126,0.39598,2527.6,2527.4,0.39599]
[1729781130534,1.4856,2527.7,2527.2,0.6905]
[1729781130735,0.396,2527.4,2527.3,0.396]
[1729781130935,0.39604,2527.1,2527.0,1.12685]
[1729781131235,0.39604,2527.1,2526.4,15.06178733]
[1729781131236,4.18343733,2527.1,2526.3,4.19822]
[1729781131425,0.39611,2526.7,2526.6,0.39611]
[1729781131929,3.2078,2526.9,2526.3,3.8983]
[1729781132329,3.2078,2526.9,2526.3,0.6905]
[1729781132537,3.60388,2526.9,2526.8,0.39609]
[1729781132730,3.60388,2526.9,2526.7,0.39609]
[1729781132935,3.2078,2526.9,2526.4,0.99039]
[1729781133132,3.60388,2526.9,2526.8,0.39609]
[1729781133338,3.2078,2526.9,2526.8,0.39609]
[1729781133538,3.60387,2526.9,2526.8,0.39609]
[1729781133834,7.1654,2526.9,2526.3,3.8983]
[1729781134040,0.39612,2526.6,2526.3,0.6905]
[1729781134334,3.2078,2526.9,2526.1,0.7355]
[1729781134335,0.39615,2526.4,2526.1,0.7355]
[1729781134529,5.17367733,2526.8,2526.1,0.7355]
[1729781134730,0.39616,2526.4,2526.2,0.39617]
[1729781135027,0.39616,2526.4,2526.0,3.2078]
[1729781135028,0.3962,2526.1,2526.0,3.2078]
[1729781135334,7.39123733,2526.3,2525.5,3.2078]
[1729781135529,7.39123733,2526.3,2525.2,0.7067]
[1729781135530,4.18343733,2526.1,2525.2,0.7067]
[1729781135730,0.39621,2526.0,2525.7,0.39625]
[1729781135938,0.39624,2525.9,2525.7,0.39625]
[1729781136139,4.18343733,2526.1,2525.3,0.99082]
[1729781136327,0.39625,2525.9,2525.6,0.39627]
[1729781136635,3.2078,2526.0,2525.9,0.39623]
[1729781136829,3.60401,2526.0,2525.4,3.2078]
[1729781137143,3.2078,2526.0,2525.8,0.39623]
[1729781137326,3.2078,2526.0,2525.4,3.957]
[1729781137527,3.2078,2526.0,2525.9,0.39623]
[1729781137930,4.18343733,2526.3,2525.7,3.2078]
[1729781138233,4.18343733,2526.3,2526.2,0.39618]
[1729781138637,4.18343733,2526.3,2526.1,0.39619]
[1729781139135,4.18343733,2526.3,2525.9,0.39622]
[1729781139136,0.39619,2526.2,2525.9,0.39622]
[1729781139339,4.18343733,2526.3,2525.8,1.4355]
[1729781139638,3.2078,2526.5,2525.9,0.99058]
[1729781139836,0.39615,2526.4,2526.2,0.39617]
[1729781140136,0.39621,2526.1,2525.8,1.83173]
[1729781140333,0.39622,2526.0,2525.8,1.10293]
[1729781140533,4.18343733,2526.3,2525.8,0.7067]
[1729781140733,0.39622,2526.0,2525.8,1.10294]
[1729781140932,4.18343733,2526.1,2525.4,3.957]
[1729781141232,0.39625,2525.8,2525.6,0.39627]
[1729781141536,0.6936,2526.0,2525.4,3.957]
[1729781141832,0.39628,2525.6,2525.4,0.3963]
[1729781142239,4.89313733,2525.8,2525.4,0.3963]
[1729781142428,4.89313733,2525.8,2525.3,0.7396]
[1729781142740,0.39629,2525.6,2525.4,0.3963]
[1729781142938,3.2078,2525.9,2525.8,0.39625]
[1729781143251,3.2078,2525.9,2525.3,4.9382]
[1729781143539,3.60403,2525.9,2525.7,0.39625]
[1729781143741,0.6936,2526.0,2525.3,1.7304]
[1729781143933,0.6936,2526.0,2525.4,3.2078]
[1729781144332,0.39624,2525.9,2525.7,0.39626]
[1729781144533,1.08982,2526.0,2525.8,0.39625]
[1729781144934,0.39625,2525.8,2525.6,0.39627]
[1729781145138,0.6936,2526.0,2525.5,0.6855]
[1729781145438,0.39624,2525.9,2525.7,0.39625]
[1729781145645,1.4106,2526.0,2525.5,0.6855]
[1729781145843,1.80683,2526.0,2525.8,0.39625]
[1729781146142,1.4106,2526.0,2525.5,0.6855]
[1729781146343,0.39625,2525.8,2525.6,0.39627]
[1729781146734,3.40240737,2525.9,2525.7,0.39626]
[1729781146936,3.79864737,2525.9,2525.5,0.6855]
[1729781147141,0.7104,2526.1,2525.9,0.39623]
[1729781147142,3.40240737,2526.1,2525.9,0.39623]
[1729781147344,3.40240737,2526.1,2525.9,0.39622]
[1729781147345,3.79860737,2526.1,2525.9,0.39622]
[1729781147545,3.79860737,2526.1,2525.6,4.9522]
[1729781147546,3.40240737,2526.1,2526.0,0.39621]
[1729781148229,3.60399,2526.2,2525.7,0.99064]
[1729781148230,3.2078,2526.2,2525.7,0.99064]
[1729781148447,3.2078,2526.2,2526.1,0.3962]
[1729781149147,4.18671771,2526.4,2525.9,3.9101]
[1729781149438,3.2078,2526.5,2526.4,0.39615]
[1729781150044,0.99024,2526.8,2526.3,3.2078]
[1729781150247,4.18671771,2526.9,2526.4,0.39615]
[1729781150248,5.62501771,2526.9,2526.4,0.39615]
[1729781150443,0.3961,2526.8,2526.1,0.9905]
[1729781150742,0.39609,2526.8,2526.6,0.39611]
[1729781151047,4.91971771,2526.9,2526.3,3.2078]
[1729781151236,3.2078,2527.0,2526.4,0.99037]
[1729781151545,4.18671771,2526.9,2526.3,3.2078]
[1729781151745,0.39614,2526.5,2526.4,0.39615]
[1729781152244,0.39614,2526.5,2526.3,0.39615]
[1729781152449,7.39451771,2526.7,2526.2,0.7081]
[1729781152646,0.39614,2526.5,2526.4,0.39615]
[1729781153141,0.39613,2526.6,2526.4,0.39615]
[1729781153643,0.39613,2526.6,2526.5,0.39614]
[1729781154039,0.39613,2526.6,2526.4,0.39614]
[1729781154237,0.39613,2526.6,2526.2,0.7081]
[1729781154438,4.18671771,2526.7,2526.2,0.7081]
[1729781154644,0.39613,2526.6,2526.4,0.39614]
[1729781154843,0.39613,2526.6,2526.2,0.7081]
[1729781155046,4.18671771,2526.9,2526.2,0.7081]
[1729781155252,4.18671771,2526.9,2526.2,1.69855]
[1729781155544,0.39611,2526.7,2526.6,0.39611]
[1729781155741,0.3961,2526.8,2526.7,0.3961]
[1729781155945,4.58279771,2526.9,2526.8,0.39609]
[1729781156139,4.58279771,2526.9,2526.7,0.3961]
[1729781156140,0.3961,2526.8,2526.7,0.3961]
[1729781156345,0.39611,2526.7,2526.6,0.39612]
[1729781156647,4.18671771,2526.9,2526.2,1.69855]
[1729781156846,0.39614,2526.5,2526.4,0.39615]
[1729781157050,0.39614,2526.5,2525.9,3.60188]
[1729781157051,0.39619,2526.2,2525.9,0.7023]
[1729781157348,0.39619,2526.2,2525.9,1.09852]
[1729781157349,0.39621,2526.0,2525.9,1.09852]
[1729781157849,3.2078,2526.2,2525.8,1.4668]
[1729781157850,4.18671771,2526.1,2525.8,1.4668]
[1729781158452,0.39623,2525.9,2525.8,1.86304]
[1729781159139,0.39623,2525.9,2525.8,0.7108]
[1729781159443,0.39623,2525.9,2525.8,1.10705]
[1729781159645,0.39623,2525.9,2525.8,0.7108]
[1729781159847,0.39623,2525.9,2525.8,1.10705]
[1729781161053,0.7522,2526.0,2525.8,0.7108]
[1729781161349,0.7522,2526.0,2525.8,1.10705]
[1729781161350,0.39623,2525.9,2525.8,1.10705]
[1729781161753,1.14842,2526.0,2525.9,0.39623]
[1729781161950,0.39623,2525.9,2525.8,1.10704]
[1729781162854,3.2078,2526.2,2525.8,0.7108]
[1729781163053,3.2078,2526.2,2525.9,0.6972]
[1729781163256,0.39621,2526.1,2526.0,0.3962]
[1729781163557,0.3962,2526.1,2526.0,0.3962]
[1729781163954,3.2078,2526.2,2525.9,0.6972]
[1729781164155,3.2078,2526.2,2525.9,1.68777]
[1729781164358,4.18671771,2526.4,2525.9,0.6972]
[1729781164559,0.3962,2526.1,2526.0,0.39621]
[1729781164755,4.18671771,2526.4,2525.9,0.6972]
[1729781164952,4.18671771,2526.4,2525.9,1.68778]
[1729781165160,3.933,2526.5,2525.9,1.68778]
[1729781165356,1.12134,2526.5,2526.4,0.39615]
[1729781165582,4.18671771,2526.6,2526.2,0.99046]
[1729781165862,0.39612,2526.7,2526.6,0.39612]
[1729781166159,0.3961,2526.7,2526.6,0.39612]
[1729781166360,4.6653,2526.8,2526.4,0.6918]
[1729781166751,4.6653,2526.8,2526.4,1.08794]
[1729781166752,0.39614,2526.5,2526.4,1.08794]
[1729781166952,4.3154,2526.8,2526.7,0.3961]
[1729781167750,0.39613,2526.6,2526.5,0.39614]
[1729781167948,4.3154,2526.8,2526.7,0.3961]
[1729781168355,7.32021297,2526.8,2526.4,0.6918]
[1729781168562,0.39611,2526.7,2526.6,0.39611]
[1729781168759,7.32021297,2526.8,2526.4,0.6918]
[1729781168961,3.2078,2526.8,2526.7,0.3961]
[1729781169163,3.2078,2527.1,2526.5,0.99034]
[1729781169464,3.2078,2527.1,2526.9,0.39607]
[1729781169660,3.2078,2527.1,2527.0,0.39606]
[1729781169857,0.39601,2527.3,2526.8,0.99022]
[1729781170061,0.39601,2527.3,2527.2,0.39603]
[1729781170260,6.60871297,2527.4,2527.3,0.39601]
[1729781170261,3.2078,2527.4,2527.3,0.39601]
[1729781170459,3.2078,2527.4,2527.0,0.99013]
[1729781170460,3.40091297,2527.6,2527.5,0.39598]
[1729781170665,3.60376,2527.7,2527.6,0.39596]
[1729781170864,3.60376,2527.7,2527.0,5.10684297]
[1729781170865,0.396,2527.4,2527.0,3.9236]
[1729781171061,0.39604,2527.1,2527.0,1.11185]
[1729781171368,0.39604,2527.2,2527.0,0.39606]
[1729781171568,0.39604,2527.1,2527.0,0.39606]
[1729781171873,3.2078,2527.4,2526.9,5.65608]
[1729781172067,3.60381,2527.4,2527.3,0.39601]
[1729781172565,3.60379,2527.4,2527.0,3.2078]
[1729781172765,3.2078,2527.4,2527.0,3.2078]
[1729781173079,0.39602,2527.3,2527.2,0.39602]
[1729781173564,0.39603,2527.3,2527.2,0.39602]
[1729781173769,8.34774297,2527.3,2526.1,1.906]
[1729781173961,8.34774297,2527.3,2526.5,0.7292]
[1729781173962,3.2078,2527.1,2526.5,0.7292]
[1729781174164,0.39611,2526.7,2526.6,0.39611]
[1729781174362,0.3961,2526.8,2526.7,0.3961]
[1729781174771,3.40091297,2527.0,2526.5,0.7292]
[1729781174970,0.39608,2526.9,2526.8,0.39608]
[1729781175163,3.2078,2527.1,2526.5,4.92733]
[1729781175475,1.10604,2527.2,2526.8,0.99023]
[1729781175666,1.10604,2527.2,2527.1,0.39604]
[1729781176168,25.0,3524.0,2527.1,3.9568]
[1729781176169,7.32921297,2527.7,2527.1,3.9568]
[1729781176465,7.32921297,2527.7,2527.2,0.707]
[1729781176466,3.9283,2527.7,2527.2,0.707]
[1729781176675,0.396,2527.4,2527.3,0.396]
[1729781177073,0.39599,2527.5,2527.4,0.39598]
[1729781177463,7.32921297,2527.7,2527.2,1.10302]
[1729781177464,0.39601,2527.3,2527.2,1.10302]
[1729781177667,0.39601,2527.3,2527.2,0.39602]
[1729781178270,0.396,2527.4,2527.3,0.396]
[1729781179371,4.91821,2527.7,2527.0,3.9139]
[1729781179372,7.32921297,2527.7,2527.0,3.9139]
[1729781179567,0.39597,2527.6,2527.5,0.39597]
[1729781179762,3.9283,2527.7,2527.6,0.39596]
[1729781179763,3.2078,2527.7,2527.6,0.39596]
[1729781179969,3.40091297,2527.9,2527.5,0.39597]
[1729781180276,0.39597,2527.6,2527.5,0.39597]
[1729781180589,0.39596,2527.7,2527.6,0.39596]
[1729781180966,3.40091297,2527.9,2527.5,0.39596]
[1729781180967,0.39597,2527.6,2527.5,0.39596]
[1729781181376,0.39596,2527.7,2527.6,0.39596]
[1729781182065,3.40091297,2527.9,2527.7,0.39594]
[1729781182066,0.39594,2527.8,2527.7,0.39594]
[1729781182675,3.2078,2528.0,2527.9,0.39592]
[1729781182975,3.6037,2528.0,2527.9,0.39592]
[1729781184176,0.39593,2527.9,2527.7,0.39593]
[1729781184363,0.39593,2527.9,2527.5,0.7542]
[1729781184364,0.39593,2527.9,2527.8,0.39593]
[1729781185780,0.39593,2527.9,2527.5,0.7542]
[1729781185781,3.79684297,2527.9,2527.5,0.7542]
[1729781186077,3.79684297,2527.9,2527.8,0.39593]
[1729781186678,3.79684297,2527.9,2527.5,0.7542]
[1729781186679,3.40091297,2527.9,2527.5,0.7542]
[1729781186875,0.39596,2527.6,2527.5,0.7542]
[1729781187066,0.39596,2527.6,2527.5,1.15018]
[1729781187270,0.39602,2527.3,2527.1,0.39603]
[1729781187470,7.59859297,2527.7,2527.0,3.2078]
[1729781187666,0.39602,2527.3,2527.2,0.39602]
[1729781187876,0.39602,2527.3,2527.0,3.2078]
[1729781187877,0.6979,2527.5,2527.0,4.19794]
[1729781188093,3.2078,2527.7,2527.2,0.99007]
[1729781188275,0.39599,2527.5,2527.4,0.39598]
[1729781188472,3.2078,2527.7,2527.1,0.99009]
[1729781188673,3.2078,2527.7,2527.1,4.39100297]
[1729781188882,3.2078,2527.7,2527.0,3.2078]
[1729781188883,3.2078,2527.7,2527.6,0.39596]
[1729781189070,0.39594,2527.8,2527.7,0.39594]
[1729781189582,6.60871297,2528.0,2527.5,1.3897]
[1729781189776,0.39593,2527.9,2527.8,0.39592]
[1729781190279,6.60871297,2528.0,2527.5,1.3897]
[1729781190682,0.39594,2527.8,2527.7,0.39593]
[1729781190879,0.39596,2527.6,2527.5,1.78567]
[1729781191081,0.39596,2527.7,2527.6,0.39595]
[1729781191279,7.59848297,2528.0,2527.5,1.3897]
[1729781191280,0.39596,2527.6,2527.5,1.78567]
[1729781191874,7.59848297,2528.0,2527.6,0.39595]
[1729781191875,0.39596,2527.7,2527.6,0.39595]
[1729781192583,0.39593,2527.9,2527.8,0.39592]
[1729781192777,0.39594,2527.8,2527.7,0.39593]
[1729781193578,0.39596,2527.6,2527.5,1.10016]
[1729781193885,0.39596,2527.6,2527.5,0.39596]
[1729781194082,0.39603,2527.3,2527.2,0.39601]
[1729781194277,4.39084297,2527.6,2527.1,4.6653]
[1729781194278,1.67947,2527.5,2527.1,4.6653]
[1729781194482,0.39603,2527.2,2527.1,1.13123]
[1729781195085,0.39602,2527.3,2527.2,0.39601]
[1729781197985,0.6895,2527.5,2527.0,1.69974]
[1729781198291,0.39601,2527.4,2527.3,0.39599]
[1729781199584,0.39597,2527.6,2527.5,0.39596]
[1729781199779,0.39598,2527.5,2527.4,1.15499]
[1729781201682,0.39603,2527.3,2527.2,0.39602]
[1729781208286,0.39603,2527.3,2527.0,0.759]
[1729781208287,0.39604,2527.1,2527.0,0.759]
[1729781208496,0.39604,2527.1,2527.0,1.84166]
[1729781208981,0.39603,2527.2,2527.1,0.39603]
[1729781209181,3.2078,2527.3,2527.0,2.43575]
[1729781209388,0.39601,2527.3,2527.2,0.39601]
[1729781209884,0.39601,2527.3,2526.6,0.99027]
[1729781209885,11.55554297,2527.3,2526.6,0.99027]
[1729781210085,0.39608,2527.0,2526.9,0.39606]
[1729781211089,0.99011,2527.2,2526.7,1.493]
[1729781211389,0.39605,2526.8,2526.7,1.88905]
[1729781212792,0.39601,2527.2,2527.1,0.39599]
[1729781213089,0.39601,2527.2,2526.8,0.99013]
[1729781213090,0.39598,2527.3,2527.2,0.39597]
[1729781213393,0.39593,2527.6,2527.5,0.39591]
[1729781213783,4.88992,2527.9,2527.3,4.6795]
[1729781213984,0.39592,2527.7,2527.6,0.3959]
[1729781214392,4.88992,2527.9,2527.3,4.6795]
[1729781214591,3.9002,2527.9,2527.3,9.07034297]
[1729781214794,0.39587,2528.0,2527.9,0.39587]
[1729781215091,3.60362,2528.3,2528.2,0.39583]
[1729781215489,3.2078,2528.3,2528.2,0.39583]
[1729781215690,0.39577,2528.6,2528.5,0.39578]
[1729781215886,0.39577,2528.6,2528.2,4.07897628]
[1729781215887,0.39575,2528.7,2528.6,0.39576]
[1729781216389,3.9648,2529.1,2528.5,3.40091297]
[1729781216584,3.9648,2529.1,2528.8,0.39573]
[1729781216786,0.39572,2529.0,2528.8,0.39573]
[1729781216992,0.39574,2528.8,2528.7,0.39575]
[1729781217199,0.39573,2528.9,2528.8,0.39573]
[1729781217690,3.9648,2529.1,2528.7,0.39574]
[1729781217691,0.39574,2528.8,2528.7,0.39574]
[1729781217887,3.9648,2529.1,2528.5,3.40091297]
[1729781218086,3.60351,2529.1,2528.9,0.39571]
[1729781218291,0.39571,2529.0,2528.8,0.39572]
[1729781218497,4.9539,2529.5,2528.8,0.7135]
[1729781218693,0.757,2529.5,2528.9,3.40091297]
[1729781218888,3.9246,2529.8,2529.1,3.40091297]
[1729781219090,0.39563,2529.5,2529.3,0.39565]
[1729781219394,0.39565,2529.4,2529.2,0.39567]
[1729781219593,0.39567,2529.3,2529.1,3.40091297]
[1729781219899,0.98901,2529.7,2529.2,0.39567]
[1729781220193,0.98901,2529.7,2529.1,3.40091297]
[1729781220398,3.2078,2529.8,2529.1,3.40091297]
[1729781220694,0.98903,2529.6,2529.0,3.9562]
[1729781220897,0.39569,2529.1,2529.0,0.7484]
[1729781221287,0.98903,2529.6,2529.0,7.9106]
[1729781221492,0.39566,2529.3,2529.2,0.39567]
[1729781221687,0.39567,2529.3,2529.2,0.39567]
[1729781221989,4.19676,2529.8,2529.2,4.34927]
[1729781222196,0.39566,2529.3,2529.2,0.39567]
[1729781222401,0.39563,2529.5,2529.2,0.39567]
[1729781222599,3.2078,2529.8,2529.3,0.39565]
[1729781222792,0.39561,2529.7,2529.5,0.39562]
[1729781223196,0.39561,2529.7,2529.5,1.12432]
[1729781223390,4.19664,2530.1,2529.7,0.39559]
[1729781223391,0.39558,2529.8,2529.7,0.39559]
[1729781223695,0.732,2530.3,2529.7,3.2078]
[1729781223892,3.2078,2530.5,2529.7,6.60871297]
[1729781224096,0.39556,2530.0,2529.8,3.60337]
[1729781224301,0.39554,2530.1,2529.9,0.39556]
[1729781224500,0.98867,2530.6,2529.8,3.2078]
[1729781224700,0.39553,2530.2,2530.1,3.2078]
[1729781224906,0.39553,2530.2,2530.0,3.79646297]
[1729781225102,0.39551,2530.3,2530.1,3.2078]
[1729781225400,0.39547,2530.5,2530.3,0.39549]
[1729781225613,3.2078,2530.8,2530.2,3.40091297]
[1729781225800,0.39542,2530.9,2530.7,0.39543]
[1729781226004,0.39542,2530.9,2530.6,6.60871297]
[1729781226005,0.39542,2530.8,2530.6,7.00415297]
[1729781226195,0.7253,2531.2,2530.6,6.60871297]
[1729781226500,0.39544,2530.7,2530.6,3.2078]
[1729781226692,5.11464297,2531.2,2530.3,3.60329]
[1729781226693,0.39548,2530.5,2530.3,3.60329]
[1729781227303,0.39547,2530.6,2530.4,0.39549]
[1729781227602,3.2078,2531.1,2530.5,0.39547]
[1729781227603,0.39545,2530.7,2530.5,0.39547]
[1729781227799,0.39546,2530.6,2530.4,3.40091297]
[1729781227989,0.39546,2530.6,2530.5,0.39546]
[1729781228193,0.39545,2530.7,2530.5,0.39546]
[1729781228403,0.39545,2530.7,2530.4,7.35291297]
[1729781228404,0.39545,2530.7,2530.4,3.40091297]
[1729781228799,0.39549,2530.4,2530.3,3.2078]
[1729781228993,0.39548,2530.5,2530.3,3.60329]
[1729781229191,0.39548,2530.5,2530.4,3.79640297]
[1729781229399,0.39546,2530.6,2530.4,7.74840297]
[1729781229594,0.39546,2530.6,2530.4,3.79638297]
[1729781229799,0.98849,2531.0,2530.4,3.79638297]
[1729781229997,0.39544,2530.7,2530.6,3.2078]
[1729781230694,0.98849,2531.0,2530.4,0.695]
[1729781230892,0.39544,2530.8,2530.6,3.79636297]
[1729781231095,0.39544,2530.7,2530.6,3.2078]
[1729781232003,0.39544,2530.8,2530.6,3.2078]
[1729781232193,3.2078,2531.1,2530.6,3.60325]
[1729781232503,0.39543,2530.8,2530.7,0.39544]
[1729781232695,0.39542,2530.9,2530.7,0.39544]
[1729781232897,0.7253,2531.2,2530.8,3.40091297]
[1729781233121,0.7253,2531.2,2530.9,3.2078]
[1729781233404,0.39539,2531.0,2530.9,3.60321]
[1729781233600,0.39539,2531.0,2530.9,3.2078]
[1729781233795,0.39539,2531.0,2530.9,7.159]
[1729781233998,0.39539,2531.0,2530.9,3.2078]
[1729781234397,0.7253,2531.2,2530.9,3.2078]
[1729781234706,0.7253,2531.2,2530.7,1.13763]
[1729781234904,0.39542,2530.8,2530.7,1.13763]
[1729781235095,0.7253,2531.2,2530.7,0.7422]
[1729781235296,4.19615,2531.4,2530.9,3.2078]
[1729781235497,0.39535,2531.3,2531.2,0.39536]
[1729781235692,1.69558,2531.8,2531.2,3.40091297]
[1729781235693,3.2078,2531.7,2531.2,3.40091297]
[1729781235899,3.60309,2531.7,2531.5,0.39531]
[1729781236099,0.98811,2532.0,2531.6,3.40091297]
[1729781236100,3.2078,2532.0,2531.6,3.40091297]
[1729781236299,3.60304,2532.0,2531.9,3.40091297]
[1729781236705,3.2078,2532.0,2531.8,0.39526]
[1729781236901,0.39526,2531.9,2531.8,3.60306]
[1729781237102,0.39525,2531.9,2531.8,3.2078]
[1729781237306,0.39525,2532.0,2531.9,0.39525]
[1729781237497,0.39525,2531.9,2531.8,3.60306]
[1729781237701,0.39525,2531.9,2531.8,3.2078]
[1729781238006,5.09632297,2532.3,2531.6,3.9123]
[1729781238007,0.39528,2531.7,2531.6,3.9123]
[1729781238199,0.98817,2531.9,2531.4,3.79623297]
[1729781238397,0.9881,2532.0,2531.4,3.40091297]
[1729781238608,0.98818,2531.8,2531.5,3.2078]
[1729781238796,0.3953,2531.6,2531.5,3.2078]
[1729781238996,0.3953,2531.6,2531.4,3.40091297]
[1729781238997,0.39531,2531.5,2531.4,3.79623297]
[1729781239200,3.2078,2532.1,2531.4,7.35131297]
[1729781239400,3.2078,2532.1,2531.6,3.2078]
[1729781239605,0.39528,2531.7,2531.6,0.3953]
[1729781239805,0.39528,2531.7,2531.5,3.40091297]
[1729781240009,0.39528,2531.7,2531.6,3.9504]
[1729781240207,0.39528,2531.7,2531.6,4.3457]
[1729781240406,0.39528,2531.7,2531.6,3.9504]
[1729781240710,0.39528,2531.7,2531.6,4.3457]
[1729781241203,0.98811,2532.0,2531.4,0.39532]
[1729781241204,0.39533,2531.5,2531.4,0.39532]
[1729781241395,0.3953,2531.6,2531.5,0.39531]
[1729781241595,3.2078,2532.1,2531.5,6.60871297]
[1729781241795,0.39529,2531.7,2531.6,0.39529]
[1729781241996,0.3953,2531.6,2531.5,7.00401297]
[1729781242195,0.9881,2532.0,2531.3,4.15691297]
[1729781242710,0.9881,2532.0,2531.4,0.39532]
[1729781242711,0.39532,2531.5,2531.4,0.39532]
[1729781243100,0.9881,2532.0,2531.6,0.39529]
[1729781243101,0.39529,2531.7,2531.6,0.39529]
[1729781243299,0.39529,2531.7,2531.6,3.79620297]
[1729781243509,0.39529,2531.7,2531.6,7.74580297]
[1729781243810,0.39529,2531.7,2531.6,3.9496]
[1729781244016,0.9881,2532.0,2531.4,3.79623297]
[1729781244017,0.39531,2531.5,2531.4,3.79623297]
[1729781244303,0.3953,2531.6,2531.5,0.3953]
[1729781244709,0.39529,2531.7,2531.6,0.39529]
[1729781245212,0.39531,2531.5,2531.4,7.00403297]
[1729781245608,0.39531,2531.6,2531.5,0.39531]
[1729781245807,0.39531,2531.5,2531.4,7.00403297]
[1729781246005,0.98814,2531.9,2531.4,6.60871297]
[1729781246205,0.39531,2531.6,2531.5,0.39531]
[1729781246405,0.39529,2531.7,2531.6,0.39529]
[1729781246609,0.39531,2531.6,2531.5,0.39531]
[1729781247109,0.39531,2531.6,2531.5,3.9504]
[1729781247611,0.39531,2531.6,2531.5,4.3457]
[1729781248912,3.2078,2532.1,2531.5,3.9504]
[1729781249107,0.39524,2532.0,2531.9,0.39524]
[1729781249313,0.39525,2531.9,2531.8,4.52726297]
[1729781249713,0.39524,2532.0,2531.9,0.39524]
[1729781250211,3.2078,2532.1,2531.8,4.13201297]
[1729781250411,0.39525,2531.9,2531.8,4.52726297]
[1729781250614,0.39525,2532.0,2531.9,0.39524]
[1729781250804,3.2078,2532.1,2532.0,0.39524]
[1729781250805,0.39524,2532.1,2532.0,0.39524]
[1729781251808,0.39525,2532.0,2531.9,0.39524]
[1729781252707,0.7074,2532.3,2531.8,4.13201297]
[1729781252909,0.39523,2532.1,2532.0,0.39521]
[1729781253301,0.7074,2532.3,2531.9,0.7586]
[1729781253513,0.39522,2532.2,2532.1,0.3952]
[1729781253709,0.39522,2532.1,2532.0,3.60303]
[1729781254218,0.39522,2532.1,2532.0,0.39523]
[1729781254508,0.98802,2532.2,2531.9,1.15384]
[1729781254709,0.39524,2532.0,2531.9,1.15384]
[1729781256710,1.69538,2532.3,2532.1,0.39521]
[1729781256711,0.39522,2532.2,2532.1,0.39521]
[1729781256913,0.39519,2532.4,2532.3,0.39518]
[1729781257413,0.39517,2532.5,2532.4,0.39516]
[1729781257712,0.39516,2532.6,2532.4,0.7441]
[1729781257910,0.98767,2533.1,2532.5,3.40091297]
[1729781258104,0.39513,2532.8,2532.7,0.39511]
[1729781258303,1.74327,2533.1,2532.6,0.39513]
[1729781258304,0.39514,2532.7,2532.6,0.39513]
[1729781258513,0.39512,2532.8,2532.7,0.39511]
[1729781258716,1.74327,2533.1,2532.7,3.40091297]
[1729781258911,0.39506,2533.2,2533.1,0.39505]
[1729781259111,0.39508,2533.1,2533.0,0.39508]
[1729781259309,0.39508,2533.1,2533.0,4.34308]
[1729781259502,0.39506,2533.2,2533.1,0.39504]
[1729781259705,3.2078,2533.5,2533.1,6.60871297]
[1729781260018,0.39511,2532.8,2532.5,0.39515]
[1729781260215,0.39515,2532.6,2532.5,0.39515]
[1729781260511,0.98771,2533.0,2532.5,0.39515]
[1729781260512,0.39514,2532.7,2532.6,0.39514]
[1729781260920,0.39514,2532.6,2532.5,3.79606297]
[1729781261316,0.39514,2532.6,2532.5,7.74486297]
[1729781261516,0.39516,2532.5,2532.4,3.2078]
[1729781262115,0.3952,2532.2,2532.1,3.2078]
[1729781262619,0.3952,2532.2,2531.6,4.15461297]
[1729781262620,4.14801297,2532.4,2531.8,3.2078]
[1729781262819,0.39525,2531.9,2531.8,3.2078]
[1729781264510,0.39525,2531.9,2531.8,2.0501]
[1729781264917,7.74576297,2531.9,2531.8,2.0501]